[Event "Superbet Blitz Poland 2023"]
[Site "Warsaw"]
[Date "2023.05.25"]
[Round "16"]
[White "Shevchenko, Kirill"]
[Black "Rapport, Richard"]
[Result "0-1"]
[ECO "A07"]
[WhiteElo "2684"]
[BlackElo "2745"]
[Annotator "TA"]
[PlyCount "114"]
[EventDate "2023.05.24"]
[EventType "tourn"]
[EventCountry "POL"]
[SourceTitle "playchess.com"]
[Source "ChessBase"]
[SourceQuality "1"]
[TimeControl "300+2"]

{[%evp 16,114,0,0,0,0,0,-25,0,0,0,0,20,18,18,20,45,0,1,-4,27,0,0,24,49,0,5,15,8,-20,-22,-24,-20,-8,32,0,24,0,2,0,0,0,0,0,0,0,39,12,87,23,127,0,4,0,110,44,97,66,125,0,0,0,0,0,42,-10,39,-62,-72,-78,-85,-75,29,-104,0,-265,-256,-254,-259,-306,-303,-304,-299,-343,0,-133,-90,-990,-351,-531,-486,-1453,-1410,-1263,-1343,-1297,-905,-29980,-29981,-29983,-12234]} 1. Nf3 {[%emt 0:00:03]} Nf6 {[%emt 0:00:05]} 2. g3 {[%emt 0:00:01]} g6 {[%emt 0:00:04]} 3. Bg2 {[%emt 0:00:01]} Bg7 {[%emt 0:00:01]} 4. O-O {[%emt 0:00:02]} O-O {[%emt 0:00:02]} 5. d3 {[%emt 0:00:01]} d5 {[%emt 0:00:04]} 6. Nbd2 {[%emt 0:00:01]} Nc6 {[%emt 0:00:02]} 7. e4 {[%emt 0:00:02]} e5 {[%emt 0:00:04]} 8. exd5 {[%emt 0:00:13]} Nxd5 {[%emt 0:00:02]} 9. Re1 {[%emt 0:00:01]} Re8 {[%emt 0:00:06] A07: Réti Opening: New York and Capablanca Systems.} 10. c3 {[%emt 0:00:14]} a5 {[%emt 0:00:02] [#]} 11. h3 $146 {[%emt 0:00:10]} ({Predecessor:} 11. a4 h6 12. Nc4 Nb6 13. Nxb6 cxb6 14. Be3 Be6 15. Nd2 f5 16. Nc4 Bxc4 17. dxc4 e4 18. Qxd8 Raxd8 19. Red1 Ne5 {1-0 Bachmann,A (2628)-Shirov,A (2683) Florianopolis op 3rd 2017 (9)}) 11... Nde7 {[%emt 0:00:14] Black has an edge.} 12. Nc4 {[%emt 0:00:06]} Nf5 {[%emt 0:00:02]} 13. Ng5 {[%emt 0:00:09]} Ra6 {[%emt 0:00:18]} 14. a4 {[%emt 0:00:07]} h6 {[%emt 0:00:24]} (14... Nd6 {is interesting.} 15. Bd5 Rf8 16. Qb3 Qd7) 15. Ne4 {[%emt 0:00:03]} b6 {[%emt 0:00:01]} 16. Qb3 {[%emt 0:00:23]} Ra7 {[%emt 0:00:20]} (16... Qxd3 17. Qb5 Re6 18. Bxh6 $16) 17. Be3 {[%emt 0:00:12]} Qd7 {[%emt 0:00:30]} (17... Qxd3 18. Nc5 bxc5 19. Bxc6 $16) 18. Rad1 {[%emt 0:00:11][%cal Oc4b6]} (18. g4 $5 {[%cal Rg4f5]} Nxe3 19. Nxe3 $11) 18... Bb7 {[%emt 0:00:08][%cal Bc8b7,Bb7a8,Ba8d5][%mdl 32]} 19. Qb5 {[%emt 0:00:46]} Kh8 {[%emt 0:00:17]} (19... Rd8 {seems wilder.} 20. Bc1 Nce7 21. Ned2 Bc6) 20. Qb3 {[%emt 0:00:15]} (20. Nxb6 $14 {is superior.} cxb6 21. Bxb6) 20... Ba8 {[%emt 0:00:10]} 21. Bc1 {[%emt 0:00:07]} Nd8 {[%emt 0:00:11]} 22. Na3 {[%emt 0:00:05]} Bd5 {[%emt 0:00:07]} 23. Qc2 {[%emt 0:00:10]} Ra8 {[%emt 0:00:01]} 24. Nc4 {[%emt 0:00:06]} Bc6 {[%emt 0:00:07]} 25. b3 {[%emt 0:00:01]} Nb7 {[%emt 0:00:09]} 26. Ba3 {[%emt 0:00:15]} Rad8 {[%emt 0:00:02]} 27. Qe2 {[%emt 0:00:07]} Bd5 {[%emt 0:00:03]} 28. h4 {[%emt 0:00:03]} h5 {[%emt 0:00:09]} 29. Bc1 {[%emt 0:00:01]} Qc6 {[%emt 0:00:03]} 30. Bh3 {[%emt 0:00:07]} Nbd6 {[%emt 0:00:18]} 31. Bg5 {[%emt 0:00:05]} Ra8 {[%emt 0:00:06]} (31... Nxe4 $11 32. dxe4 Bxc4 33. Qxc4 (33. bxc4 Rxd1 34. Qxd1 Nd6 $15) 33... Qxc4 34. bxc4 Rxd1 {[%mdl 64] Remove Defender} 35. Rxd1 Nd6) 32. Bg2 {[%emt 0:01:02]} (32. Ncxd6 $16 Nxd6 33. c4) 32... Rf8 {[%emt 0:00:18]} (32... f6 $11 33. Bxf6 Bxf6 34. Nxf6 {[%mdl 64] Discovered Attack} Bxg2 35. Nxe5 Bh1 36. Nxc6 (36. Nxe8 $2 Qg2#) (36. Nxg6+ $2 Kg7 $19) 36... Rxe2 37. Rxe2 (37. Kxh1 Rxf2 38. Kg1 Rf3 $11) 37... Bxc6) 33. Bh3 {[%emt 0:00:04]} (33. Nexd6 $16 Nxd6 34. Nxe5) 33... Rae8 {[%emt 0:00:02]} 34. Nf6 {[%emt 0:00:12]} (34. Bc1 {simplifies} Bxc4 35. dxc4 Nxe4 36. Qxe4 Qxe4 37. Rxe4 Nd6 38. Re2) 34... Nxc4 {[%emt 0:00:12] [#]} (34... Bxf6 $11 35. Bxf6+ Kg8) 35. Nxd5 {[%emt 0:00:06]} ({Inferior is} 35. dxc4 Bf3 36. Qd3 Bxd1 37. Nxe8 Bxb3 38. Nxg7 Nxg7 $11) (35. Bxf5 $1 $16 Bxf6 36. Bd7 {[%mdl 64] Deflection} (36. dxc4 Bf3 $14) (36. bxc4 Bh1 $11) 36... Qxd7 37. Bxf6+ Kg8 38. dxc4) 35... Ncd6 {[%emt 0:00:08]} (35... Nb2 $14 36. Qxb2 Qxd5) 36. Nf6 {[%emt 0:00:04]} Qxc3 {[%emt 0:00:13]} (36... Re6 $14 37. Bg2 Qxc3) 37. Nxe8 {[%emt 0:00:06]} (37. Bxf5 $16 Nxf5 38. Nxe8 (38. Rc1 Qxb3 39. Nxe8 Rxe8 $16)) 37... Nd4 $11 {[%emt 0:00:01]} 38. Qe3 {[%emt 0:00:03]} Rxe8 {[%emt 0:00:01]} 39. Rc1 {[%emt 0:00:09]} Qb4 {[%emt 0:00:02]} 40. Bg2 {[%emt 0:00:03]} (40. Rxc7 $14 Qxb3 41. Bd7) 40... c5 {[%emt 0:00:02]} (40... N6f5 $11 41. Qe4 Nd6) 41. Bh6 {[%emt 0:00:06] A strong pair of Bishops.} (41. Bd5 $14) 41... N6f5 $36 {[%emt 0:00:03][%mdl 2048] Black is in control.} 42. Bxg7+ {[%emt 0:00:01]} Kxg7 {[%emt 0:00:01]} 43. Qe4 {[%emt 0:00:02]} Nxb3 {[%emt 0:00:04]} ({Don't play} 43... Qxb3 $6 44. Rb1 Qxa4 45. Rxb6 $11) ({Black should play} 43... Re6 $17) 44. Rc4 {[%emt 0:00:02] [#] White is weak on the dark squares} (44. Rb1 $1 $11 {remains equal.} Qc3 45. Qc4 Qxc4 46. dxc4) 44... Qd2 {[%emt 0:00:04]} ({Better is} 44... Qa3 $1 $17 {Hoping for ...Nd2.} 45. Qe2 Nfd4) 45. Rb1 $2 {[%emt 0:00:03][%mdl 8192]} (45. Re2 $11 {and White has nothing to worry.} Qd1+ 46. Re1) 45... Qa2 $19 {[%emt 0:00:02]} 46. Qe1 {[%emt 0:00:05]} Nd2 {[%emt 0:00:08][%mdl 64] Discovered Attack} 47. Ra1 Qb2 {[%emt 0:00:01]} 48. Rcc1 {[%emt 0:00:03]} Nd4 {[%emt 0:00:02]} 49. Qd1 {[%emt 0:00:02] Against N4f3+} N2b3 $2 {[%emt 0:00:04]} (49... e4 $19 50. Rcb1 Nxb1 51. Rxb1 Ne2+ 52. Kh2 Nc3 {[%mdl 64] Discovered Attack} 53. Rxb2 Nxd1) 50. Rab1 {[%emt 0:00:02]} (50. Rcb1 $11 {was the only way to keep the balance.} Qe2 51. Qxe2 {[%mdl 64] Remove Defender} Nxe2+ 52. Kf1 Nxa1 53. Kxe2) 50... Qe2 {[%emt 0:00:23] Black has more active pieces.} 51. Rc3 {[%emt 0:00:06][%mdl 8192] Now White is beyond hope.} (51. Rxb3 $17 Qxd1+ 52. Rxd1 Nxb3 53. Rb1) 51... Nd2 $2 {[%emt 0:00:04]} (51... Qxd1+ 52. Rxd1 Ne2+ 53. Kh2 Nxc3) 52. Bf1 {[%emt 0:00:13]} (52. Rc2 $142 Qxd1+ 53. Rxd1 Nxc2 54. Rxd2) 52... Nxb1 {[%emt 0:00:01][%cal Bd2b1,Bb1c3,Bc3e2][%mdl 32]} 53. Bxe2 {[%emt 0:00:01]} (53. Qxb1 $142 Qd2 54. Rc1) 53... Nxc3 {[%emt 0:00:01]} 54. Qd2 {[%emt 0:00:03]} Ncxe2+ {[%emt 0:00:02]} 55. Kg2 {[%emt 0:00:01]} Re6 {[%emt 0:00:02]} 56. Qb2 {[%emt 0:00:01]} e4 {[%emt 0:00:05]} 57. dxe4 {[%emt 0:00:02]} c4 {[%emt 0:00:02] Weighted Error Value: White=0.62/Black=0.54} 0-1

[Event "Superbet Blitz Poland 2023"]
[Site "Warsaw"]
[Date "2023.05.25"]
[Round "16"]
[White "Wojtaszek, Radoslaw"]
[Black "Aronian, Levon"]
[Result "1/2-1/2"]
[ECO "A29"]
[WhiteElo "2670"]
[BlackElo "2745"]
[Annotator "TA"]
[PlyCount "131"]
[EventDate "2023.05.24"]
[EventType "tourn"]
[EventCountry "POL"]
[SourceTitle "playchess.com"]
[Source "ChessBase"]
[SourceQuality "1"]
[TimeControl "300+2"]

{[%evp 10,131,0,0,16,13,16,-10,13,20,14,4,21,1,8,0,29,18,41,9,32,11,110,99,96,103,133,148,144,155,132,155,146,160,150,141,191,191,173,181,235,237,230,232,279,272,275,263,297,264,335,335,320,316,305,223,285,275,256,308,400,398,398,150,150,150,150,150,150,150,150,150,150,150,150,150,150,150,150,150,150,0,150,150,150,150,150,0,150,150,150,150,150,150,150,106,106,0,106,106,106,0,0,0,0,0,8,0,0,8,56,0,0,0,56,0,0,0,0,0,0,0,0,0]} 1. c4 {[%emt 0:00:01]} Nf6 {[%emt 0:00:02]} 2. Nc3 {[%emt 0:00:01]} e5 {[%emt 0:00:01]} 3. Nf3 {[%emt 0:00:01]} Nc6 {[%emt 0:00:01]} 4. g3 {[%emt 0:00:02]} d5 {[%emt 0:00:02]} 5. cxd5 {[%emt 0:00:01]} Nxd5 {[%emt 0:00:01]} 6. Bg2 {[%emt 0:00:01][%cal Of3e5]} Bc5 {[%emt 0:00:02] A29: English Opening: Four Knights Variation with 4 g3.} 7. O-O {[%emt 0:00:02][%cal Of3e5]} O-O {[%emt 0:00:02]} 8. Qc2 {[%emt 0:00:02] Threatens to win with Nxd5.} Nf6 {[%emt 0:00:07]} 9. a3 {[%emt 0:00:02]} a5 {[%emt 0:00:10]} 10. e3 {[%emt 0:00:02][%cal Of3e5] [#]} h6 $146 {[%emt 0:00:17]} ({Predecessor:} 10... Qe7 11. b3 Rd8 12. Bb2 h6 13. Ne4 Nxe4 14. Qxe4 Bd6 15. Qc2 Be6 16. d3 Rd7 {1-0 Sarana,A (2668)-Svane,R (2619) Speed Chess Q1 blitz 2022 (8)}) 11. b3 {[%emt 0:00:05][%cal Of3e5]} (11. Nxe5 {with more complications.} Nxe5 12. d4 Bxd4 13. exd4 Qxd4 14. Bf4) 11... Re8 {[%emt 0:00:06]} 12. Bb2 {[%emt 0:00:08]} Bf8 {[%emt 0:00:20]} (12... e4 $5 {[%cal Re4f3]} 13. Nh4 g5 $11) 13. Nb5 {[%emt 0:00:26]} Bd7 {[%emt 0:00:44]} 14. d3 {[%emt 0:00:42]} Ra6 {[%emt 0:00:15]} (14... Bf5 $5 {[%cal Rf5d3]} 15. e4 Bg4 $11) 15. Rac1 {[%emt 0:00:21]} Nb4 {[%emt 0:00:27]} 16. axb4 $16 {[%emt 0:00:05]} Bxb5 {[%emt 0:00:01]} 17. Nxe5 {[%emt 0:00:04][%mdl 64] Discovered Attack} (17. Bxe5 $6 Bxd3 18. Bxc7 Qd5 $15) 17... Bxb4 {[%emt 0:00:01]} 18. Bxb7 {[%emt 0:00:23]} (18. Qxc7 Qxc7 19. Rxc7 Bd6 20. Rxb7 Bxe5 $14) 18... Rae6 {[%emt 0:00:09] [#]} 19. Nc6 {[%emt 0:00:24] White is more active.} (19. Qxc7 Qxc7 20. Rxc7 Bd6 $17) 19... Qxd3 {[%emt 0:00:01]} 20. Nxb4 {[%emt 0:00:14]} axb4 {[%emt 0:00:02]} 21. Qxd3 {[%emt 0:00:03]} (21. Qxc7 $2 R6e7 22. Qf4 (22. Qb6 $2 Rb8 $19) 22... Rxb7 $19) 21... Bxd3 {[%emt 0:00:01]} 22. Rfd1 {[%emt 0:00:01]} Be4 {[%emt 0:00:59]} (22... Rb8 $16 {was worth a try.}) 23. Rxc7 $18 {[%emt 0:00:02]} Bxb7 {[%emt 0:00:49]} 24. Rxb7 {[%emt 0:00:02]} Rc8 {[%emt 0:00:11]} (24... Ne4 {was called for.} 25. Rdd7 (25. Rxb4 Ra8 $18) 25... Nc5) 25. Bxf6 {[%emt 0:00:15]} Rxf6 {[%emt 0:00:02]} 26. Rxb4 {[%emt 0:00:02][%mdl 4096] Endgame KRR-KRR} Rc2 {[%emt 0:00:22]} 27. Rf4 {[%emt 0:00:17]} Rxf4 {[%emt 0:00:01]} 28. gxf4 {[%emt 0:00:18] KR-KR} ({Much less strong is} 28. exf4 $6 Rc8 29. Kg2 Rb8 $18) 28... Rb2 {[%emt 0:00:01]} 29. Rd3 {[%emt 0:00:07]} g5 {[%emt 0:00:01]} 30. fxg5 {[%emt 0:00:07]} hxg5 {[%emt 0:00:01]} 31. Kg2 {[%emt 0:00:03]} Kg7 {[%emt 0:00:01]} 32. Kg3 {[%emt 0:00:03]} Kg6 {[%emt 0:00:33]} 33. f3 {[%emt 0:00:00]} Kh5 {[%emt 0:00:08]} 34. e4 {[%emt 0:00:08]} Rb1 {[%emt 0:00:02]} 35. Rd7 {[%emt 0:00:14]} f6 {[%emt 0:00:04]} 36. Rd6 $2 {[%emt 0:00:01]} (36. Rh7+ $18 Kg6 37. Rb7) 36... f5 $16 {[%emt 0:00:01]} 37. exf5 {[%emt 0:00:59] Rb6 would be deadly.} Rxb3 {[%emt 0:00:01]} 38. Rd8 {[%emt 0:00:01][%cal Rd8h8]} g4 {[%emt 0:00:03] [#]} 39. Rh8+ $1 {[%emt 0:00:18]} Kg5 {[%emt 0:00:01]} 40. Rg8+ {[%emt 0:00:02]} Kxf5 {[%emt 0:00:01]} 41. Rxg4 {[%emt 0:00:02]} Rb1 {[%emt 0:00:00]} 42. h4 {[%emt 0:00:05]} Rg1+ {[%emt 0:00:04]} 43. Kh3 {[%emt 0:00:01]} Ra1 {[%emt 0:00:01]} 44. Rb4 {[%emt 0:00:04]} Kg6 {[%emt 0:00:03]} 45. Rb5 {[%emt 0:00:02]} (45. Rf4 $16) 45... Ra4 {[%emt 0:00:04]} (45... Rh1+ $1 $11 46. Kg3 Rd1) 46. Kg3 {[%emt 0:00:01]} Ra1 {[%emt 0:00:02]} 47. Rg5+ {[%emt 0:00:01]} Kf6 {[%emt 0:00:01]} 48. Rb5 {[%emt 0:00:01]} Kg6 $1 {[%emt 0:00:01]} 49. Kg4 {[%emt 0:00:01]} Rg1+ {[%emt 0:00:01]} 50. Kf4 {[%emt 0:00:01] Threatening mate with Rg5+.} Rh1 {[%emt 0:00:01] [#]} 51. h5+ {[%emt 0:00:01]} Kh6 {[%emt 0:00:01]} (51... Kg7 52. Rd5) 52. Kg3 {[%emt 0:00:04] Inhibits Rh4.} Rg1+ {[%emt 0:00:02]} 53. Kf4 {[%emt 0:00:02]} (53. Kf2 $16 Rh1 54. Re5) 53... Ra1 {[%emt 0:00:01]} (53... Rh1 $11) 54. Rc5 {[%emt 0:00:08]} Rb1 {[%emt 0:00:02]} 55. Kf5 {[%emt 0:00:03]} ({White should play} 55. Re5 $16) 55... Kxh5 $11 {[%emt 0:00:02]} 56. f4 {[%emt 0:00:00]} Kh6 {[%emt 0:00:02]} 57. Rc7 {[%emt 0:00:01]} Rf1 {[%emt 0:00:02]} 58. Ke5 {[%emt 0:00:01]} Kg6 {[%emt 0:00:00]} 59. Rc6+ {[%emt 0:00:02]} Kf7 {[%emt 0:00:02]} (59... Kg7 $11 {might be stronger.}) 60. Rc7+ {[%emt 0:00:03]} ({Reject} 60. f5 Re1+ 61. Kd4 Rd1+ 62. Ke4 Re1+ 63. Kd5 Rd1+ 64. Ke4 Re1+ 65. Kf4 Rf1+ 66. Kg5 Rg1+ 67. Kh6 Rh1+ 68. Kg5 Rg1+ 69. Kh6 Rh1+ 70. Kg5 Rg1+ $11) (60. Kf5 $1 $14) 60... Kg6 {[%emt 0:00:01]} 61. Rc6+ {[%emt 0:00:02]} (61. f5+ $11 Rxf5+ 62. Kd4) 61... Kf7 $14 {[%emt 0:00:01]} 62. f5 {[%emt 0:00:01]} (62. Kf5 $1 $14) 62... Re1+ $11 {[%emt 0:00:01] The position is equal.} 63. Kf4 {[%emt 0:00:01]} Rf1+ {[%emt 0:00:01]} 64. Ke5 {[%emt 0:00:00]} Re1+ {[%emt 0:00:00]} 65. Kf4 {[%emt 0:00:01]} Rf1+ {[%emt 0:00:02]} 66. Ke5 {Black defended with fortune.   Weighted Error Value: White=0.18 (very precise) /Black=0.21 (precise)} 1/2-1/2

[Event "Superbet Blitz Poland 2023"]
[Site "Warsaw"]
[Date "2023.05.25"]
[Round "17"]
[White "Giri, Anish"]
[Black "Rapport, Richard"]
[Result "1/2-1/2"]
[ECO "C41"]
[WhiteElo "2768"]
[BlackElo "2745"]
[Annotator "TA"]
[PlyCount "53"]
[EventDate "2023.05.24"]
[EventType "tourn"]
[EventCountry "POL"]
[SourceTitle "playchess.com"]
[Source "ChessBase"]
[SourceQuality "1"]
[TimeControl "300+2"]

{[%evp 18,53,50,41,29,36,48,43,38,44,77,98,87,72,79,64,93,54,53,8,10,6,0,0,123,93,85,38,37,0,0,0,0,0,0,0,0,0]} 1. e4 {[%emt 0:00:01]} e5 {[%emt 0:00:02]} 2. Nf3 {[%emt 0:00:01]} d6 {[%emt 0:00:00]} 3. d4 {[%emt 0:00:01]} exd4 {[%emt 0:00:01]} 4. Nxd4 {[%emt 0:00:01]} Nf6 {[%emt 0:00:02]} 5. Nc3 {[%emt 0:00:01]} Be7 {[%emt 0:00:01]} 6. Bf4 {[%emt 0:00:00]} O-O {[%emt 0:00:02]} 7. Qd2 {[%emt 0:00:01]} Nc6 {[%emt 0:00:01]} 8. O-O-O {[%emt 0:00:03]} Nxd4 {[%emt 0:00:02]} 9. Qxd4 {[%emt 0:00:01]} Be6 {[%emt 0:00:01]} 10. Be2 {[%emt 0:00:02]} a6 {[%emt 0:00:02] C41: Philidor Defence.} 11. Qe3 {[%emt 0:00:02]} Re8 {[%emt 0:00:03] [#]} 12. h4 $146 {[%emt 0:00:02]} ({Predecessor:} 12. e5 Nd7 13. exd6 cxd6 14. Bxd6 Bxa2 15. Bxe7 Rxe7 16. Qg5 h6 17. Qh4 Be6 18. Bf3 {½-½ Srinath,T-Aldaev,E W-ch WS/O/1226 email 2020}) 12... b5 {[%emt 0:00:07] White is slightly better.} 13. e5 {[%emt 0:00:26]} Ng4 {[%emt 0:00:49]} 14. Qg3 {[%emt 0:00:03][%csl LRd6,LRg4]} Qc8 {[%emt 0:00:10]} 15. Bxg4 {[%emt 0:00:23]} Bxg4 {[%emt 0:00:02] Black is weak on the dark squares} 16. f3 {[%emt 0:00:02]} Bf5 {[%emt 0:00:26]} 17. Nd5 {[%emt 0:00:04] h5 is the strong threat. White is more active.} ({But not} 17. exd6 $6 cxd6 18. Bxd6 b4 $11) 17... Kh8 {[%emt 0:00:17]} 18. Nxe7 {[%emt 0:00:06]} Rxe7 {[%emt 0:00:02]} 19. Rhe1 {[%emt 0:00:16][%cal Bh1e1,Be1e5,Be5e7][%mdl 32]} Qe6 {[%emt 0:00:25] [#] Hoping for ...Qc4.} 20. b3 {[%emt 0:00:37][%cal Re5d6] Wards off Qc4} dxe5 {[%emt 0:00:10]} (20... d5 $1 $11 {keeps the balance.}) 21. Rxe5 {[%emt 0:02:01]} Qf6 {[%emt 0:00:01]} 22. Rde1 {[%emt 0:00:08]} (22. Rdd5 $16 c6 23. Rxe7 (23. Rxf5 Qa1+ 24. Kd2 cxd5 $11) (23. Bg5 Qg6 $14) 23... cxd5 24. Be5) 22... Rae8 $14 {[%emt 0:00:26][%cal Of6c6]} 23. Rxe7 {[%emt 0:00:32][%cal Re7e8] [#]} Qa1+ {[%emt 0:00:15] The position is equal.} 24. Kd2 {[%emt 0:00:00][%cal Re7e8]} Qd4+ {[%emt 0:00:05]} 25. Kc1 {[%cal Re7e8]} Qa1+ {[%emt 0:00:02]} 26. Kd2 {[%emt 0:00:01][%cal Re7e8]} Qd4+ {[%emt 0:00:01]} 27. Kc1 {Weighted Error Value: White=0.15 (very precise) /Black=0.16 (very precise)} 1/2-1/2

[Event "Superbet Blitz Poland 2023"]
[Site "Warsaw"]
[Date "2023.05.25"]
[Round "17"]
[White "So, Wesley"]
[Black "Shevchenko, Kirill"]
[Result "1-0"]
[ECO "B78"]
[WhiteElo "2760"]
[BlackElo "2684"]
[Annotator "TA"]
[PlyCount "67"]
[EventDate "2023.05.24"]
[EventType "tourn"]
[EventCountry "POL"]
[SourceTitle "playchess.com"]
[Source "ChessBase"]
[SourceQuality "1"]
[TimeControl "300+2"]

{[%evp 23,67,28,21,41,41,29,16,41,30,0,102,128,122,122,219,208,215,178,244,239,236,109,185,0,245,242,261,245,584,521,565,557,623,611,29995,29996,29996,29997,29997,29997,29997,-427,29997,29998,29998,29999]} 1. e4 {[%emt 0:00:02]} c5 {[%emt 0:00:01]} 2. Nf3 {[%emt 0:00:01]} d6 {[%emt 0:00:03]} 3. d4 {[%emt 0:00:07]} cxd4 {[%emt 0:00:01]} 4. Nxd4 {[%emt 0:00:02]} Nf6 {[%emt 0:00:01]} 5. Nc3 {[%emt 0:00:01]} g6 {[%emt 0:00:03]} 6. Be3 {[%emt 0:00:03]} Bg7 {[%emt 0:00:01]} 7. f3 {[%emt 0:00:01]} O-O {[%emt 0:00:03]} 8. Qd2 {[%emt 0:00:01]} Nc6 {[%emt 0:00:01]} 9. Bc4 {[%emt 0:00:01]} Bd7 {[%emt 0:00:05]} 10. O-O-O {[%emt 0:00:04]} Rc8 {[%emt 0:00:02]} 11. Bb3 {[%emt 0:00:01]} Nxd4 {[%emt 0:00:06]} 12. Bxd4 {[%emt 0:00:02]} b5 {[%emt 0:00:02]} 13. Bxa7 {[%emt 0:00:07] B78: Sicilian Dragon: Yugoslav Attack, 9 Bc4 Bd7 10 0-0-0 Rc8.} b4 {[%emt 0:00:09]} 14. Nd5 {[%emt 0:00:14]} Nxd5 {[%emt 0:00:04]} 15. exd5 {[%emt 0:00:02] The position is equal.} Qa5 {[%emt 0:00:38]} 16. Bd4 {[%emt 0:00:02]} Bf5 {[%emt 0:00:49] [#]} (16... Rxc2+ $11 17. Qxc2 (17. Bxc2 Qxa2 18. Qe3 Rc8 $11) 17... Rc8 18. Qxc8+ (18. Bc4 $2 Bf5 $19) 18... Bxc8) 17. Kb1 $1 $16 {[%emt 0:00:22] [#]} Bxd4 $146 {[%emt 0:01:24]} ({Predecessor:} 17... Ra8 18. Bxg7 Rfc8 19. Bd4 Bxc2+ 20. Qxc2 Rxc2 21. Kxc2 Qb5 22. Rhe1 Qd7 23. Kb1 Rc8 {1-0 Klimentov,E (1858)-Beljushina,S (1688) Anapa op 2012 (4)}) 18. Qxd4 {[%emt 0:00:02]} Rc7 {[%emt 0:00:18]} (18... Rfe8 $16) 19. Rhe1 $18 {[%emt 0:00:22]} ({Much less strong is} 19. g4 $6 Bd7 $16) 19... Ra8 {[%emt 0:00:11][%cal Of5c2] Hoping for ...Bxc2+!} 20. Rd2 {[%emt 0:00:12]} Qb5 {[%emt 0:00:16]} (20... Rac8 $142) 21. g4 {[%emt 0:00:07]} Bc8 {[%emt 0:00:04]} 22. Qd3 {[%emt 0:00:16]} (22. h4 $18) 22... Qc5 {[%emt 0:00:03]} (22... Qxd3 $16 23. Rxd3 f5) 23. Qd4 $2 {[%emt 0:00:15]} (23. Qe4 $18) 23... Qa5 $2 {[%emt 0:00:06]} (23... Qb5 $1 $11 {and Black has nothing to worry.}) 24. h4 {[%emt 0:00:18]} Ba6 {[%emt 0:00:25]} 25. h5 {[%emt 0:00:02] And now hxg6 would win.} Bb5 $2 {[%emt 0:00:09]} (25... Qc5 26. hxg6 fxg6 27. Qxc5 Rxc5) 26. hxg6 {[%emt 0:00:02]} fxg6 {[%emt 0:00:01]} 27. Rh2 {[%emt 0:00:14][%cal Oh2h7] Intending Rxh7! and mate.} Ba4 {[%emt 0:00:15] ...Bxb3 is the strong threat.} 28. Re6 {[%emt 0:01:06][%cal Oe6g6] White threatens Rxg6+! and mate.} Qc5 {[%emt 0:00:29] [#]} 29. Rxg6+ $3 {[%emt 0:00:07][%mdl 512]} Kf7 {[%emt 0:00:01]} 30. Rxh7+ {[%emt 0:00:03]} Ke8 {[%emt 0:00:01]} 31. Bxa4+ {[%emt 0:00:15]} Rxa4 {[%emt 0:00:01]} 32. Qh8+ {[%emt 0:00:05]} Kd7 {[%emt 0:00:01][%cal Rc5g1] [#]} 33. Rxe7+ $3 {[%mdl 512]} Kxe7 {[%emt 0:00:01]} 34. Qh7+ {[%emt 0:00:03] Beautiful play by So!   Weighted Error Value: White=0.50/Black=0.82} 1-0